bitfinex/quotes_SOLUSD_20240708
["timestamp","ask_amount","ask_price","bid_price","bid_amount"]
[1720468152582,6.3937,138.24,138.19,109.32]
[1720468152583,6.3937,138.24,138.19,9.15]
[1720468152794,9.15,138.23,138.18,25.3291]
[1720468153687,9.15,138.22,138.18,25.3291]
[1720468155271,9.15,138.2,138.14,18.0964]
[1720468155577,9.15,138.19,138.14,27.2464]
[1720468156418,9.15,138.19,138.15,7.2381]
[1720468156694,9.15,138.19,138.16,7.2376]
[1720468156898,9.15,138.19,138.16,18.0947]
[1720468157195,9.15,138.2,138.16,18.0947]
[1720468157411,9.15,138.2,138.16,25.3324]
[1720468157769,15.7814,138.22,138.16,18.2647]
[1720468158076,9.15,138.21,138.17,7.2372]
[1720468158397,9.15,138.2,138.16,25.3324]
[1720468158700,9.15,138.21,138.18,18.0921]
[1720468158899,24.9314,138.22,138.18,25.3286]
[1720468159277,15.7814,138.22,138.18,18.0921]
[1720468159598,15.5437,138.24,138.19,0.17]
[1720468159978,15.5437,138.24,138.2,7.2355]
[1720468160598,16.3421,138.25,138.21,0.17]
[1720468160778,6.5631,138.27,138.21,0.17]
[1720468160980,6.5631,138.27,138.23,7.2341]
[1720468161202,6.5631,138.27,138.22,25.3215]
[1720468162298,6.5631,138.27,138.19,18.0899]
[1720468162604,6.5631,138.27,138.2,0.17]
[1720468163206,6.5631,138.27,138.2,7.4057]
[1720468163412,6.5631,138.27,138.2,7.2357]
[1720468163582,6.5631,138.27,138.19,18.0899]
[1720468163583,6.5631,138.27,138.19,25.3261]
[1720468165416,6.5631,138.27,138.2,7.2357]
[1720468166810,0.17,138.26,138.19,18.0899]
[1720468167125,0.17,138.26,138.14,36.1925]
[1720468167126,0.34,138.26,138.14,36.1925]
[1720468167328,21.9921,138.24,138.16,7.2379]
[1720468167610,7.4045,138.23,138.15,7.2384]
[1720468167830,0.17,138.23,138.15,7.2384]
[1720468168109,0.17,138.23,138.12,15.2474]
[1720468168319,0.17,138.23,138.18,7.2364]
[1720468168495,0.17,138.23,138.18,18.0922]
[1720468169207,0.17,138.23,138.17,7.2373]
[1720468169723,0.17,138.23,138.15,18.095]
[1720468169724,0.17,138.23,138.16,7.2377]
[1720468170901,0.17,138.23,138.15,25.3331]
[1720468171616,7.4044,138.23,138.15,18.095]
[1720468175421,0.17,138.23,138.15,25.3331]
[1720468175592,0.17,138.23,138.16,7.2379]
[1720468177433,0.17,138.23,138.15,25.3332]
[1720468178396,0.17,138.23,138.16,7.2378]
[1720468179713,0.17,138.23,138.15,25.3333]
[1720468180605,21.8221,138.24,138.17,25.3307]
[1720468180908,21.8221,138.24,138.17,18.0935]
[1720468182430,29.0559,138.24,138.17,18.0935]
[1720468182606,9.16,138.21,138.17,18.0935]
[1720468183130,9.16,138.21,138.16,16.5678]
[1720468183827,9.16,138.21,138.16,9.33]
[1720468184326,9.16,138.2,138.15,9.16]
[1720468184924,9.16,138.2,138.16,7.2377]
[1720468185225,9.16,138.2,138.15,9.16]
[1720468185226,9.16,138.2,138.15,16.3984]
[1720468185599,21.8221,138.24,138.16,127.4246]
[1720468185914,9.16,138.22,138.17,9.16]
[1720468186901,9.16,138.22,138.16,134.6623]
[1720468187096,29.0559,138.24,138.16,134.6623]
[1720468187303,9.16,138.21,138.16,134.6623]
[1720468187819,9.16,138.21,138.16,127.4246]
[1720468188005,9.16,138.22,138.16,127.4246]
[1720468188204,9.16,138.22,138.18,7.2368]
[1720468188404,9.16,138.22,138.17,7.2372]
[1720468188619,9.16,138.22,138.18,7.2366]
[1720468188823,9.16,138.22,138.17,7.2371]
[1720468189014,21.8221,138.24,138.19,16.5661]
[1720468189211,21.8221,138.24,138.19,9.33]
[1720468189612,30.9821,138.24,138.19,9.33]
[1720468190904,21.8221,138.24,138.19,0.17]
[1720468191105,30.9821,138.24,138.19,9.33]
[1720468191732,30.9821,138.24,138.2,7.2358]
[1720468192037,30.9821,138.24,138.19,16.5662]
[1720468193027,21.8221,138.24,138.19,16.5662]
[1720468193231,21.8221,138.24,138.2,7.2358]
[1720468193608,21.8221,138.24,138.19,16.5662]
[1720468195124,21.8221,138.24,138.2,7.2358]
[1720468195523,6.5137,138.27,138.21,0.17]
[1720468195827,15.6737,138.27,138.22,27.2469]
[1720468196032,15.6737,138.27,138.22,34.4815]
[1720468196925,15.6737,138.27,138.22,27.2469]
[1720468198832,9.16,138.25,138.21,0.17]
[1720468199031,6.5137,138.27,138.21,0.17]
[1720468199032,9.16,138.26,138.21,9.33]
[1720468200210,6.5137,138.27,138.21,27.4183]
[1720468200440,6.5137,138.27,138.23,16.3942]
[1720468200913,6.5137,138.27,138.24,9.33]
[1720468201931,6.3724,138.31,138.26,109.33]
[1720468202132,6.3724,138.31,138.28,9.33]
[1720468202431,6.3724,138.31,138.28,16.5615]
[1720468202835,6.3724,138.31,138.29,7.231]
[1720468203210,6.3724,138.31,138.28,16.5615]
[1720468203417,6.3724,138.31,138.28,9.33]
[1720468204139,6.3724,138.31,138.24,18.0833]
[1720468204322,9.16,138.29,138.24,27.2433]
[1720468204636,6.3724,138.31,138.24,27.2433]
[1720468204839,6.3724,138.31,138.25,9.16]
[1720468205012,15.5324,138.31,138.28,7.2316]
[1720468205335,6.3724,138.31,138.27,9.16]
[1720468205537,6.3724,138.31,138.27,16.392]
[1720468205717,6.3724,138.31,138.28,7.2315]
[1720468205921,6.3724,138.31,138.28,0.17]
[1720468206134,15.5324,138.31,138.26,25.3139]
[1720468206529,15.5324,138.31,138.24,0.17]
[1720468206736,9.16,138.29,138.24,0.17]
[1720468206917,9.16,138.29,138.24,7.4037]
[1720468207241,9.16,138.29,138.24,7.2337]
[1720468207414,9.16,138.29,138.24,16.3937]
[1720468208014,9.16,138.3,138.25,7.2331]
[1720468208214,6.3724,138.31,138.25,7.2331]
[1720468208438,9.16,138.3,138.25,16.3931]
[1720468208637,6.3724,138.31,138.26,9.33]
[1720468208823,6.3724,138.31,138.28,9.16]
[1720468209144,6.3724,138.31,138.29,7.2307]
[1720468209534,6.3724,138.31,138.29,18.0774]
[1720468209742,6.3724,138.31,138.29,25.3084]
[1720468210127,22.8894,138.37,138.3,7.2306]
[1720468210331,9.16,138.35,138.3,7.2306]
[1720468210939,9.16,138.35,138.31,7.2301]
[1720468211744,9.16,138.35,138.3,16.3905]
[1720468213243,22.8894,138.37,138.3,16.3905]
[1720468213545,9.16,138.35,138.3,16.3905]
[1720468213842,9.16,138.35,138.29,18.0774]
[1720468214042,9.16,138.35,138.28,0.17]
[1720468214043,9.16,138.34,138.28,16.3916]
[1720468214241,9.16,138.33,138.26,18.0806]
[1720468214421,9.16,138.32,138.27,20.0]
[1720468214826,9.16,138.32,138.28,7.2313]
[1720468215026,9.16,138.32,138.28,25.3104]
[1720468215234,22.8894,138.37,138.29,7.2311]
[1720468215433,9.16,138.34,138.29,16.3911]
[1720468216028,9.16,138.34,138.3,7.2306]
[1720468216347,9.16,138.32,138.28,25.3104]
[1720468216718,30.1165,138.37,138.29,7.2311]
[1720468216923,9.16,138.31,138.25,7.2329]
[1720468217138,9.16,138.31,138.24,18.0833]
[1720468217139,9.16,138.31,138.26,36.3926]
[1720468217323,9.16,138.31,138.26,54.4743]
[1720468217945,9.16,138.31,138.26,38.0817]
[1720468218337,9.16,138.29,138.23,18.0852]
[1720468218538,9.16,138.28,138.23,34.4792]
[1720468218844,16.1241,138.31,138.23,27.2452]
[1720468219052,9.16,138.29,138.24,16.3935]
[1720468219225,9.16,138.29,138.24,7.2335]
[1720468220225,9.16,138.29,138.25,7.2331]
[1720468220422,9.16,138.3,138.26,0.17]
[1720468220739,25.2841,138.31,138.26,9.33]
[1720468220929,9.16,138.3,138.27,18.0804]
[1720468221127,9.16,138.3,138.26,7.2324]
[1720468221328,9.16,138.3,138.25,16.393]
[1720468221523,9.16,138.29,138.24,25.4871]
[1720468221830,9.16,138.29,138.24,18.2534]
[1720468222130,9.16,138.29,138.25,7.4032]
[1720468222731,9.16,138.3,138.25,7.4032]
[1720468223537,6.3498,138.32,138.29,7.2311]
[1720468223746,9.16,138.33,138.29,7.2311]
[1720468223930,9.16,138.34,138.29,7.2311]
[1720468224629,9.16,138.34,138.28,27.2391]
[1720468224630,9.16,138.32,138.28,18.0791]
[1720468225161,9.16,138.32,138.28,0.17]
[1720468225363,9.16,138.32,138.25,25.3149]
[1720468225657,9.16,138.31,138.26,36.5627]
[1720468226458,22.0374,138.35,138.28,7.4013]
[1720468226752,9.16,138.32,138.28,0.17]
[1720468227337,9.16,138.33,138.28,0.17]
[1720468227861,22.0374,138.35,138.28,7.4013]
[1720468228047,9.16,138.33,138.28,7.4013]
[1720468228249,9.16,138.33,138.28,16.5613]
[1720468228765,22.0374,138.35,138.28,16.5613]
[1720468229054,9.16,138.34,138.29,9.16]
[1720468229236,9.16,138.34,138.29,16.3911]
[1720468230139,31.1974,138.35,138.3,7.4005]
[1720468230347,31.1974,138.35,138.3,0.17]
[1720468230653,9.16,138.33,138.28,7.2315]
[1720468230857,9.16,138.33,138.28,9.16]
[1720468231244,22.0374,138.35,138.28,9.16]
[1720468231245,9.16,138.34,138.29,7.231]
[1720468231445,9.16,138.34,138.28,27.2391]
[1720468231741,9.16,138.33,138.28,27.2391]
[1720468232658,29.2655,138.35,138.26,27.2325]
[1720468232868,9.16,138.31,138.26,36.3925]
[1720468233040,9.16,138.31,138.28,7.2316]
[1720468233365,9.16,138.33,138.28,7.2316]
[1720468233548,9.16,138.32,138.28,7.2316]
[1720468234265,9.16,138.32,138.27,25.3122]
[1720468234942,9.16,138.3,138.24,33.7689]
[1720468235161,9.16,138.29,138.25,7.2332]
[1720468235440,9.16,138.29,138.26,7.2326]
[1720468235636,9.16,138.31,138.26,18.0818]
[1720468236262,9.16,138.31,138.26,27.2418]
[1720468236765,9.16,138.31,138.27,7.2322]
[1720468237771,9.16,138.31,138.25,9.16]
[1720468238061,9.16,138.31,138.26,7.2325]
[1720468238467,9.16,138.31,138.26,16.3925]
[1720468239466,6.088,138.35,138.31,7.2296]
[1720468239642,6.088,138.35,138.32,7.2292]
[1720468239841,6.088,138.35,138.31,25.3039]
[1720468240053,9.16,138.36,138.31,25.3039]
[1720468240259,22.7538,138.39,138.31,25.3039]
[1720468240260,22.7538,138.39,138.32,7.2295]
[1720468240473,22.7538,138.39,138.33,16.389]
[1720468240646,6.4372,138.39,138.33,7.229]
[1720468240848,6.4372,138.39,138.34,7.2285]
[1720468241468,56.88525492,138.43,138.35,7.228]
[1720468241469,35.08525492,138.43,138.35,7.228]
[1720468241660,41.12165492,138.43,138.35,25.2973]
[1720468242045,13.03755925,138.42,138.35,25.2973]
[1720468242363,41.12165492,138.43,138.35,25.2973]
[1720468242567,48.34555492,138.43,138.35,25.2973]
[1720468242769,48.34555492,138.43,138.35,18.0693]
[1720468243063,7.3944,138.42,138.34,7.2283]
[1720468243572,7.3944,138.42,138.33,7.3989]
[1720468244571,0.17,138.42,138.34,7.2284]
[1720468244868,22.353,138.43,138.36,7.2273]
[1720468245058,22.353,138.43,138.37,0.17]
[1720468245571,22.353,138.43,138.37,7.3969]
[1720468245948,24.7044,138.46,138.39,7.2257]
[1720468246154,6.4344,138.46,138.4,7.2253]
[1720468247270,6.4344,138.46,138.41,0.17]
[1720468247570,6.4344,138.46,138.42,7.2243]
[1720468249153,15.7376,138.47,138.42,7.2243]
[1720468249476,15.7376,138.47,138.43,7.2237]
[1720468249670,6.4126,138.49,138.43,7.2237]
[1720468251577,6.4126,138.49,138.44,18.0578]
[1720468251954,6.4126,138.49,138.44,25.281]
[1720468252277,6.4126,138.49,138.42,0.17]
[1720468252458,6.4126,138.49,138.42,27.3942]
[1720468252977,6.4126,138.49,138.42,7.3942]
[1720468253173,6.4126,138.49,138.42,7.2242]
[1720468253385,7.2218,138.47,138.39,7.2257]
[1720468253563,0.17,138.48,138.4,27.2253]
[1720468253770,0.17,138.48,138.4,38.063]
[1720468253970,6.4126,138.49,138.42,7.2242]
[1720468254359,6.4126,138.49,138.43,7.2238]
[1720468254550,6.4126,138.49,138.42,25.285]
[1720468254856,6.4126,138.49,138.42,18.0608]
[1720468255173,13.6335,138.49,138.41,7.3948]
[1720468255757,7.3915,138.48,138.4,27.2252]
[1720468256353,0.17,138.48,138.36,100.0]
[1720468256552,0.17,138.48,138.37,7.2265]
[1720468256553,7.2224,138.46,138.37,7.2265]
[1720468256761,0.17,138.45,138.37,7.2265]
[1720468257258,22.8,138.44,138.36,25.2951]
[1720468257662,22.8,138.44,138.37,7.2268]
[1720468258382,22.8,138.44,138.38,7.2264]
[1720468259681,22.8,138.44,138.37,7.2269]
[1720468260056,0.17,138.43,138.36,18.0679]
[1720468260364,22.8,138.44,138.36,25.295]
[1720468261578,22.8,138.44,138.36,18.0679]
[1720468261770,22.8,138.44,138.34,7.2284]
[1720468261771,7.2247,138.42,138.34,7.2284]
[1720468261972,7.3949,138.41,138.33,25.3015]
[1720468262168,7.3949,138.41,138.3,27.04547992]
[1720468262169,7.2254,138.4,138.3,27.04547992]
[1720468262366,16.5535,138.39,138.3,27.04547992]
[1720468262573,6.4556,138.37,138.3,25.306]
[1720468262881,6.4556,138.37,138.31,7.23]
[1720468263176,16.3835,138.39,138.35,7.2279]
[1720468263477,22.9354,138.43,138.37,7.2266]
[1720468263682,22.9354,138.43,138.36,25.295]
[1720468264593,22.9354,138.43,138.34,7.2284]
[1720468264797,0.17,138.42,138.34,0.17]
[1720468265076,7.3945,138.42,138.34,27.3985]
[1720468265688,0.34,138.42,138.32,7.2292]
[1720468265890,13.6025,138.4,138.31,7.2297]
[1720468266388,0.17,138.39,138.32,7.2296]
[1720468266587,7.396,138.39,138.31,7.2299]
[1720468266888,15.1183,138.38,138.31,7.2299]
[1720468267087,15.1183,138.38,138.3,18.2458]
[1720468267393,6.3768,138.4,138.33,0.17]
[1720468267701,6.3768,138.4,138.34,7.2281]
[1720468268281,6.3768,138.4,138.33,7.3988]
[1720468269692,6.3768,138.4,138.34,18.0709]
[1720468270074,6.3768,138.4,138.37,7.2269]
[1720468270397,6.3411,138.45,138.38,7.2263]
[1720468271269,6.3411,138.45,138.36,118.0685]
[1720468271270,6.3411,138.45,138.37,7.3968]
[1720468271470,6.3411,138.45,138.37,0.17]
[1720468271676,6.3411,138.45,138.37,7.3966]
[1720468271876,6.3411,138.45,138.4,0.17]
[1720468272066,6.3411,138.45,138.41,7.2248]
[1720468273196,15.0224,138.48,138.42,38.0606]
[1720468273373,15.0224,138.48,138.42,45.2848]
[1720468274384,15.0224,138.48,138.42,38.0606]
[1720468275077,15.0224,138.48,138.42,45.2848]
[1720468275468,6.2361,138.49,138.45,0.17]
[1720468276603,6.2361,138.49,138.43,7.2236]
[1720468277100,6.2361,138.49,138.44,7.2232]
[1720468278611,6.2361,138.49,138.43,7.3937]
[1720468278769,6.2361,138.49,138.43,0.17]
[1720468278974,6.2361,138.49,138.43,7.3938]
[1720468279681,6.2361,138.49,138.44,7.2232]
[1720468280199,6.2361,138.49,138.43,7.3937]
[1720468280370,6.2361,138.49,138.42,45.2849]
[1720468281477,6.2361,138.49,138.44,25.281]
[1720468282005,6.2361,138.49,138.44,25.2813]
[1720468283387,6.2361,138.49,138.45,0.17]
[1720468283708,6.2361,138.49,138.46,7.2219]
[1720468284390,6.2361,138.49,138.45,7.3926]
[1720468284584,6.2361,138.49,138.45,0.17]
[1720468285906,6.2361,138.49,138.45,7.3923]
[1720468286803,6.2361,138.49,138.45,0.17]
[1720468286993,6.2361,138.49,138.44,18.0582]
[1720468287192,6.2361,138.49,138.42,27.2242]
[1720468288002,6.2361,138.49,138.43,7.2237]
[1720468289613,6.2361,138.49,138.44,0.17]
[1720468290224,6.2361,138.49,138.43,25.2832]
[1720468292796,6.2361,138.49,138.44,7.2232]
[1720468294616,6.2361,138.49,138.46,7.222]
[1720468295625,6.2361,138.49,138.46,7.2222]
[1720468295925,6.2361,138.49,138.44,7.2229]
[1720468296221,6.2361,138.49,138.43,7.3936]
[1720468298220,15.4749,138.48,138.42,18.0596]
[1720468300904,15.4749,138.48,138.42,25.2835]
[1720468301526,15.4749,138.48,138.41,7.3947]
[1720468302623,15.4749,138.48,138.42,7.2242]
[1720468303032,15.4749,138.48,138.43,7.2238]
[1720468303235,15.4749,138.48,138.44,7.223]
[1720468304044,15.4749,138.48,138.43,7.3936]
[1720468306248,15.4749,138.48,138.39,18.0637]
[1720468306413,15.4749,138.48,138.4,20.17]
[1720468306738,15.4749,138.48,138.41,7.2245]
[1720468306920,15.4749,138.48,138.42,7.2243]
[1720468307845,15.4749,138.48,138.43,18.0595]
[1720468308145,15.4749,138.48,138.44,7.2232]
[1720468309911,24.5949,138.48,138.44,7.2232]
[1720468310613,15.4749,138.48,138.44,7.2232]
[1720468310810,15.4749,138.48,138.44,0.17]
[1720468311324,15.4749,138.48,138.41,25.2868]
[1720468311517,15.4749,138.48,138.43,7.2237]
[1720468311912,15.4749,138.48,138.42,7.2242]
[1720468312133,15.4749,138.48,138.41,25.2868]
[1720468312443,15.4749,138.48,138.42,20.0]
[1720468312629,15.4749,138.48,138.42,27.2243]
[1720468313844,15.4749,138.48,138.43,7.2236]
[1720468314333,15.4749,138.48,138.42,27.2242]
[1720468315338,6.6739,138.47,138.39,18.0648]
[1720468315724,7.2223,138.46,138.39,18.0648]
[1720468316037,7.2223,138.46,138.38,7.2261]
[1720468316255,7.393,138.45,138.37,7.2268]
[1720468316412,0.17,138.45,138.37,7.2268]
[1720468316611,0.17,138.45,138.38,20.0]
[1720468317013,0.17,138.45,138.38,27.2264]
[1720468317216,0.17,138.45,138.36,18.0678]
[1720468317419,28.4686,138.44,138.35,7.2279]
[1720468317727,28.4686,138.44,138.36,7.2274]
[1720468317938,0.17,138.43,138.36,7.2274]
[1720468318147,0.17,138.43,138.37,7.2268]
[1720468318457,21.245,138.44,138.38,7.2264]
[1720468318638,21.245,138.44,138.37,18.0673]
[1720468318828,21.245,138.44,138.39,7.2258]
[1720468319029,21.245,138.44,138.38,7.2262]
[1720468319853,21.245,138.44,138.37,25.2941]
[1720468321048,21.245,138.44,138.38,7.2262]
[1720468321249,21.245,138.44,138.37,25.2941]
[1720468321743,21.245,138.44,138.39,25.2899]
[1720468321936,21.245,138.44,138.4,7.3953]
[1720468322136,6.2087,138.44,138.4,107.3953]
[1720468322439,6.2087,138.44,138.41,7.2248]
[1720468322847,15.7631,138.47,138.42,0.17]
[1720468323041,6.3369,138.49,138.42,0.17]
[1720468323242,6.3369,138.49,138.43,25.2828]
[1720468323435,6.3369,138.49,138.43,18.0592]
[1720468323640,6.3369,138.49,138.43,25.2829]
[1720468323836,6.3369,138.49,138.44,7.3932]
[1720468324652,6.3369,138.49,138.42,7.2238]
[1720468324849,6.3369,138.49,138.43,20.0]
[1720468325149,13.558,138.49,138.43,20.0]
[1720468325326,7.2213,138.48,138.4,7.2253]
[1720468325533,13.7278,138.49,138.41,27.2247]
[1720468326244,6.5069,138.49,138.42,7.2243]
[1720468326567,6.3369,138.49,138.42,7.2243]
[1720468326754,6.3369,138.49,138.43,18.2294]
[1720468327249,6.3369,138.49,138.43,18.0594]
[1720468327849,6.3369,138.49,138.43,25.2828]
[1720468328242,6.3369,138.49,138.44,7.3932]
[1720468329339,6.3369,138.49,138.45,7.2226]
[1720468329838,6.3369,138.49,138.44,0.17]
[1720468330049,6.3369,138.49,138.43,18.0594]
[1720468330649,6.3369,138.49,138.43,25.2832]
[1720468331156,6.3369,138.49,138.42,0.17]
[1720468331340,13.5577,138.49,138.42,0.17]
[1720468331861,13.5577,138.49,138.41,27.2243]
[1720468332153,6.3369,138.49,138.41,20.0]
[1720468332959,13.5576,138.49,138.41,27.2247]
[1720468333163,7.2227,138.46,138.37,25.2933]
[1720468333462,6.3391,138.47,138.37,25.2933]
[1720468333463,6.5091,138.47,138.39,18.0647]
[1720468333652,6.3391,138.47,138.4,7.2251]
[1720468333835,6.3391,138.47,138.41,7.2248]
[1720468334036,6.3391,138.47,138.4,7.2252]
[1720468335550,13.5609,138.47,138.4,0.17]
[1720468336133,6.3391,138.47,138.4,7.3954]
[1720468336755,6.3391,138.47,138.41,7.2248]
[1720468337169,6.3391,138.47,138.4,7.3952]
[1720468337454,6.3391,138.47,138.37,100.0]
[1720468337455,7.2225,138.46,138.38,7.226]
[1720468337663,13.5609,138.47,138.39,7.2258]
[1720468338364,7.2223,138.46,138.38,7.3962]
[1720468340250,13.5611,138.47,138.39,7.2259]
[1720468340678,6.3391,138.47,138.4,18.063]
[1720468340981,6.3391,138.47,138.42,7.2241]
[1720468341182,9.13,138.46,138.42,7.2241]
[1720468341354,9.13,138.45,138.42,7.2241]
[1720468341557,9.13,138.46,138.42,7.2241]
[1720468342560,6.3391,138.47,138.42,7.2241]
[1720468343158,6.3391,138.47,138.43,0.17]
[1720468343375,6.3391,138.47,138.44,7.2231]
[1720468344690,6.3391,138.47,138.45,0.17]
[1720468345156,6.3391,138.47,138.45,7.3926]
[1720468345361,21.7513,138.52,138.45,25.4496]
[1720468345558,21.7513,138.52,138.47,25.2759]
[1720468346266,21.7513,138.52,138.48,0.17]
[1720468346492,21.7513,138.52,138.48,7.3909]
[1720468347683,6.2968,138.52,138.48,0.17]
[1720468347860,6.2968,138.52,138.49,7.2205]
[1720468350074,6.2968,138.52,138.48,7.391]
[1720468351091,6.2968,138.52,138.49,7.2206]
[1720468351292,122.7392,138.56,138.5,0.17]
[1720468351467,122.7392,138.56,138.5,0.34]
[1720468351670,122.7392,138.56,138.54,7.2177]
[1720468351981,122.7392,138.56,138.53,18.0461]
[1720468352182,122.7392,138.56,138.53,25.2646]
[1720468352382,122.7392,138.56,138.52,0.17]
[1720468352685,122.7392,138.56,138.51,7.2195]
[1720468354094,122.7392,138.56,138.52,7.2189]
[1720468354390,122.7392,138.56,138.53,7.2185]
[1720468355390,106.5743,138.56,138.54,7.2181]
[1720468355788,100.0,138.56,138.55,7.2176]
[1720468356400,100.0,138.56,138.55,7.3876]
[1720468356797,100.0,138.56,138.55,0.17]
[1720468357198,100.0,138.56,138.55,7.3876]
[1720468357903,100.0,138.56,138.55,27.5576]
[1720468358210,13.78663499,138.56,138.55,172.412]
[1720468358373,21.9901,138.69,138.59,100.0]
[1720468358374,7.2109,138.68,138.59,100.0]
[1720468358697,29.2005,138.69,138.61,0.17]
[1720468358873,21.9901,138.69,138.61,0.17]
[1720468359075,21.9901,138.69,138.59,0.17]
[1720468359076,7.2113,138.68,138.59,0.17]
[1720468359385,25.4616,138.67,138.59,20.17]
[1720468359590,25.4616,138.67,138.59,27.3853]
[1720468359591,18.25,138.67,138.59,27.3853]
[1720468359791,18.25,138.67,138.6,7.2147]
[1720468359991,18.25,138.67,138.61,0.17]
[1720468360198,18.25,138.67,138.59,27.3854]
[1720468360587,18.25,138.67,138.6,7.2149]
[1720468361000,18.25,138.67,138.59,38.2078]
[1720468361211,18.25,138.64,138.57,0.17]
[1720468361513,6.574,138.65,138.6,7.2147]
[1720468361820,6.574,138.65,138.59,7.3854]
[1720468362106,6.574,138.65,138.59,0.17]
[1720468362309,6.574,138.65,138.58,118.0389]
[1720468362310,6.574,138.65,138.57,7.2164]
[1720468362509,18.25,138.64,138.52,118.0476]
[1720468362679,16.1861,138.6,138.54,7.2179]
[1720468362882,16.1861,138.6,138.55,20.0]
[1720468363096,16.1861,138.6,138.55,27.2175]
[1720468364105,16.1861,138.6,138.56,18.042]
[1720468364293,16.0328,138.63,138.57,0.34]
[1720468364482,16.0328,138.63,138.59,7.2151]
[1720468364809,16.0328,138.63,138.58,25.2555]
[1720468364976,16.0328,138.63,138.59,0.17]
[1720468365707,16.0328,138.63,138.59,7.3851]
[1720468365882,16.0328,138.63,138.59,0.17]
[1720468366085,16.0328,138.63,138.59,7.3854]
[1720468366283,16.0328,138.63,138.59,0.17]
[1720468366789,16.0328,138.63,138.55,20.0]
[1720468366997,23.2466,138.63,138.55,20.0]
[1720468367689,16.0328,138.63,138.55,27.2172]
[1720468368212,16.0328,138.63,138.56,7.217]
[1720468370004,16.0328,138.63,138.57,0.17]
[1720468370311,16.0328,138.63,138.57,7.3864]
[1720468370521,16.0328,138.63,138.57,0.17]
[1720468370909,16.0328,138.63,138.56,25.2593]
[1720468371223,16.0328,138.63,138.57,0.17]
[1720468371423,16.0328,138.63,138.58,7.216]
[1720468371603,16.0328,138.63,138.57,7.3865]
[1720468371917,16.0328,138.63,138.61,7.2142]
[1720468372127,16.0328,138.63,138.6,25.2516]
[1720468372308,16.0328,138.63,138.61,7.2144]
[1720468372620,16.0328,138.63,138.6,18.0368]
[1720468372621,16.0328,138.63,138.6,25.2513]
[1720468373124,16.0328,138.63,138.6,18.0368]
[1720468374211,16.0328,138.63,138.58,7.2158]
[1720468374420,16.0328,138.63,138.59,20.0]
[1720468374924,16.0328,138.63,138.59,27.2152]
[1720468375631,16.0328,138.63,138.6,7.2149]
[1720468376018,16.0328,138.63,138.59,45.2538]
[1720468376215,16.0328,138.63,138.58,7.3859]
[1720468377026,16.0328,138.63,138.59,7.2153]
[1720468377229,16.0328,138.63,138.58,18.0395]
[1720468377808,16.0328,138.63,138.58,25.2551]
[1720468378018,16.0328,138.63,138.58,18.0395]
[1720468378508,16.0328,138.63,138.58,25.2554]
[1720468381327,16.0328,138.63,138.59,7.2151]